fUST/lending_fUST_20250131
["ID","MTS","AMOUNT","RATE_DAILY","PERIOD"]
[351050442,1738307451920,-566.7,0.00017534,2]
[351050443,1738307451929,-517.92,0.00017534,2]
[351050444,1738307451939,-500.0,0.00017534,2]
[351050445,1738307451948,-500.0,0.00017534,2]
[351050446,1738307451958,-158.499103,0.00017534,2]
[351050447,1738307451967,-608.54,0.00017534,2]
[351050448,1738307451977,-158.499103,0.00017534,2]
[351050449,1738307451987,-500.0,0.00017534,2]
[351050450,1738307451997,-17201.61,0.00017534,2]
[351050451,1738307452006,-1956.58,0.00017534,2]
[351050452,1738307452016,-500.0,0.00017534,2]
[351050453,1738307452026,-151.0,0.00017534,2]
[351050454,1738307452035,-756.03,0.00017534,2]
[351050455,1738307452046,-151.0,0.00017534,2]
[351050456,1738307452057,-500.0,0.00017534,2]
[351050457,1738307452066,-500.0,0.00017534,2]
[351050458,1738307452075,-151.0,0.00017534,2]
[351050459,1738307452086,-500.0,0.00017534,2]
[351050460,1738307452096,-500.0,0.00017534,2]
[351050461,1738307452164,-500.0,0.00017534,2]
[351050462,1738307452178,-500.0,0.00017534,2]
[351050463,1738307452187,-500.0,0.00017534,2]
[351050464,1738307452196,-500.0,0.00017534,2]
[351050465,1738307452206,-1411.47,0.00017534,2]
[351050466,1738307452215,-3586.79,0.00017534,2]
[351050467,1738307452226,-560.918603,0.00017534,2]
[351050468,1738307452235,-1132.03,0.00017534,2]
[351050469,1738307452246,-500.0,0.00017534,2]
[351050470,1738307452255,-560.918603,0.00017534,2]
[351050471,1738307452265,-500.0,0.00017534,2]
[351050472,1738307452275,-500.0,0.00017534,2]
[351050473,1738307452284,-182.284592,0.00017534,2]
[351050474,1738307452293,-500.0,0.00017534,2]
[351050475,1738307452303,-1481.55,0.00017534,2]
[351050476,1738307452312,-182.284595,0.00017534,2]
[351050477,1738307452322,-500.0,0.00017534,2]
[351050478,1738307452333,-500.0,0.00017534,2]
[351050479,1738307452342,-500.0,0.00017534,2]
[351050480,1738307452351,-711.7994511,0.00017534,2]
[351050481,1738307452361,-354.392988,0.00017534,2]
[351050482,1738307452370,-354.392988,0.00017534,2]
[351050483,1738307452380,-354.392988,0.00017534,2]
[351050484,1738307452393,-354.392988,0.00017534,2]
[351050485,1738307452402,-354.392988,0.00017534,2]
[351050486,1738307452411,-287.9324631,0.00017534,2]
[351050487,1738307452420,-396.0,0.00017641,2]
[351050488,1738307452431,-151.0,0.0001767,2]
[351050489,1738307452441,-646.901412,0.0001767,2]
[351050490,1738307452450,-646.901412,0.0001767,2]
[351050491,1738307452460,-195.333392,0.0001767,2]
[351050492,1738307452471,-195.333392,0.0001767,2]
[351050493,1738307452481,-506.42569829,0.00017671,2]
[351050494,1738307452490,-500.0,0.00017671,2]
[351050495,1738307452500,-500.0,0.00017671,2]
[351050496,1738307452510,-500.0,0.00017671,2]
[351050497,1738307452520,-481.64,0.00017671,2]
[351050498,1738307452529,-500.0,0.00017671,2]
[351050499,1738307452539,-481.66,0.00017671,2]
[351050500,1738307452548,-1222.44,0.00017671,2]
[351050501,1738307452558,-2188.85,0.00017671,2]
[351050502,1738307452567,-500.0,0.00017671,2]
[351050503,1738307452577,-16689.68,0.00017671,2]
[351050504,1738307452587,-500.0,0.00017671,2]
[351050505,1738307452597,-500.0,0.00017671,2]
[351050506,1738307452606,-6046.91,0.00017671,2]
[351050507,1738307452616,-740.13,0.00017671,2]
[351050508,1738307452625,-500.0,0.00017671,2]
[351050509,1738307452635,-500.0,0.00017671,2]
[351050510,1738307452644,-515.62,0.00017671,2]
[351050511,1738307452653,-1296.18,0.00017671,2]
[351050512,1738307452663,-500.0,0.00017671,2]
[351050513,1738307452673,-566.7,0.00017671,2]
[351050514,1738307452682,-517.92,0.00017671,2]
[351050515,1738307452691,-500.0,0.00017671,2]
[351050516,1738307452701,-500.0,0.00017671,2]
[351050517,1738307452711,-608.54,0.00017671,2]
[351050518,1738307452721,-500.0,0.00017671,2]
[351050519,1738307452730,-17201.61,0.00017671,2]
[351050520,1738307452739,-1956.58,0.00017671,2]
[351050521,1738307452750,-500.0,0.00017671,2]
[351050522,1738307452760,-756.03,0.00017671,2]
[351050523,1738307452769,-151.0,0.00017671,2]
[351050524,1738307452780,-500.0,0.00017671,2]
[351050525,1738307452790,-500.0,0.00017671,2]
[351050526,1738307452800,-151.0,0.00017671,2]
[351050527,1738307452810,-500.0,0.00017671,2]
[351050528,1738307452819,-500.0,0.00017671,2]
[351050529,1738307452829,-365.1,0.00017671,2]
[351050530,1738307452838,-500.0,0.00017671,2]
[351050531,1738307452848,-500.0,0.00017671,2]
[351050532,1738307452857,-500.0,0.00017671,2]
[351050533,1738307452866,-1411.47,0.00017671,2]
[351050534,1738307452876,-3586.79,0.00017671,2]
[351050535,1738307452886,-560.918603,0.00017671,2]
[351050536,1738307452896,-1132.03,0.00017671,2]
[351050537,1738307452906,-500.0,0.00017671,2]
[351050538,1738307452915,-560.918603,0.00017671,2]
[351050539,1738307452925,-500.0,0.00017671,2]
[351050540,1738307452934,-500.0,0.00017671,2]
[351050541,1738307452944,-500.0,0.00017671,2]
[351050542,1738307452953,-1481.55,0.00017671,2]
[351050543,1738307452963,-500.0,0.00017671,2]
[351050544,1738307452973,-500.0,0.00017671,2]
[351050545,1738307452982,-500.0,0.00017671,2]
[351050546,1738307452995,-339.111246,0.000177,2]
[351050547,1738307453005,-339.111246,0.000177,2]
[351050548,1738307453015,-192.595445,0.000177,2]
[351050549,1738307453024,-192.595445,0.000177,2]
[351050550,1738307453034,-621.0,0.000177,2]
[351050551,1738307453043,-284.88487192,0.00017708,7]
[351050552,1738307453053,-7431.24259156,0.00017729,2]
[351050553,1738307453062,-1000.0,0.000178,2]
[351050554,1738307453072,-152.767388,0.00017808,2]
[351050555,1738307453081,-500.0,0.00017808,2]
[351050556,1738307453091,-500.0,0.00017808,2]
[351050557,1738307453100,-1222.44,0.00017808,2]
[351050558,1738307453110,-2188.85,0.00017808,2]
[351050559,1738307453119,-500.0,0.00017808,2]
[351050560,1738307453128,-16689.68,0.00017808,2]
[351050561,1738307453139,-500.0,0.00017808,2]
[351050562,1738307453148,-500.0,0.00017808,2]
[351050563,1738307453158,-6046.91,0.00017808,2]
[351050564,1738307453167,-740.13,0.00017808,2]
[351050565,1738307453177,-500.0,0.00017808,2]
[351050566,1738307453187,-500.0,0.00017808,2]
[351050567,1738307453196,-515.62,0.00017808,2]
[351050568,1738307453206,-1296.18,0.00017808,2]
[351050569,1738307453215,-500.0,0.00017808,2]
[351050570,1738307453224,-566.7,0.00017808,2]
[351050571,1738307453233,-517.92,0.00017808,2]
[351050572,1738307453244,-500.0,0.00017808,2]
[351050573,1738307453253,-500.0,0.00017808,2]
[351050574,1738307453262,-158.499103,0.00017808,2]
[351050575,1738307453334,-608.54,0.00017808,2]
[351050576,1738307453344,-158.49911,0.00017808,2]
[351050577,1738307453353,-500.0,0.00017808,2]
[351050578,1738307453363,-17201.61,0.00017808,2]
[351050579,1738307453372,-1956.58,0.00017808,2]
[351050580,1738307453382,-500.0,0.00017808,2]
[351050581,1738307453395,-223.536304,0.00017808,2]
[351050582,1738307453406,-756.03,0.00017808,2]
[351050583,1738307453416,-500.0,0.00017808,2]
[351050584,1738307453426,-500.0,0.00017808,2]
[351050585,1738307453435,-500.0,0.00017808,2]
[351050586,1738307453445,-500.0,0.00017808,2]
[351050587,1738307453454,-500.0,0.00017808,2]
[351050588,1738307453463,-500.0,0.00017808,2]
[351050589,1738307453474,-1411.47,0.00017808,2]
[351050590,1738307453483,-3586.79,0.00017808,2]
[351050591,1738307453493,-1132.03,0.00017808,2]
[351050592,1738307453503,-500.0,0.00017808,2]
[351050593,1738307453512,-189.24,0.00017808,2]
[351050594,1738307453521,-500.0,0.00017808,2]
[351050595,1738307453530,-500.0,0.00017808,2]
[351050596,1738307453539,-1481.55,0.00017808,2]
[351050597,1738307453549,-500.0,0.00017808,2]
[351050598,1738307453558,-500.0,0.00017808,2]
[351050599,1738307453567,-500.0,0.00017808,2]
[351050600,1738307453576,-1010.05343865,0.00017841,2]
[351050601,1738307453586,-151.0,0.00017944,2]
[351050602,1738307453595,-646.901412,0.00017944,2]
[351050603,1738307453604,-646.901412,0.00017944,2]
[351050604,1738307453614,-195.333392,0.00017944,2]
[351050605,1738307453623,-195.333392,0.00017944,2]
[351050606,1738307453632,-151.0,0.00017945,2]
[351050607,1738307453641,-500.0,0.00017945,2]
[351050608,1738307453651,-500.0,0.00017945,2]
[351050609,1738307453660,-1222.44,0.00017945,2]
[351050610,1738307453669,-2188.85,0.00017945,2]
[351050611,1738307453678,-500.0,0.00017945,2]
[351050612,1738307453688,-5533.64943787,0.00017945,2]
[351050613,1738307453934,-11156.03056213,0.00017945,2]
[351050614,1738307453954,-500.0,0.00017945,2]
[351050615,1738307453968,-500.0,0.00017945,2]
[351050616,1738307453983,-903.64938629,0.00017945,2]
[351050617,1738307454002,-468.04,0.00017945,2]
[351050618,1738307454019,-1750.75781448,0.00017945,2]
[351050619,1738307454053,-1157.37,0.00017123,2]
[351050620,1738307454067,-2277.91023237,0.00017945,2]
[351050621,1738307454084,-646.55256686,0.00017945,2]
[351050622,1738307454099,-740.13,0.00017945,2]
[351050623,1738307454114,-500.0,0.00017945,2]
[351050624,1738307454127,-500.0,0.00017945,2]
[351050625,1738307454138,-515.62,0.00017945,2]
[351050626,1738307454147,-1296.18,0.00017945,2]
[351050627,1738307454157,-500.0,0.00017945,2]
[351050628,1738307454167,-566.7,0.00017945,2]
[351050629,1738307454178,-517.92,0.00017945,2]
[351050630,1738307454188,-500.0,0.00017945,2]
[351050631,1738307454197,-500.0,0.00017945,2]
[351050632,1738307454207,-608.54,0.00017945,2]
[351050633,1738307454217,-632.65451417,0.00017945,2]
[351050634,1738307454227,-14396.89076473,0.00017945,2]
[351050635,1738307454761,-500.0,0.00016438,2]
[351050636,1738307454770,-500.0,0.00016438,2]
[351050637,1738307454780,-500.0,0.00016438,2]
[351050638,1738307454789,-3682.81756739,0.00016573,5]
[351050639,1738307454799,-500.0,0.00016575,2]
[351050640,1738307454808,-500.0,0.00016575,2]
[351050641,1738307454817,-500.0,0.00016575,2]
[351050642,1738307454826,-500.0,0.00016712,2]
[351050643,1738307454835,-500.0,0.00016712,2]
[351050644,1738307454845,-500.0,0.00016712,2]
[351050645,1738307454854,-594.32,0.00016849,2]
[351050646,1738307454863,-500.0,0.00016849,2]
[351050647,1738307454872,-500.0,0.00016849,2]
[351050648,1738307454882,-500.0,0.00016986,2]
[351050649,1738307454894,-500.0,0.00017123,2]
[351050650,1738307454904,-419.13096045,0.0001726,2]
[351050651,1738307454915,-738.23903955,0.0001726,2]
[351050652,1738307454924,-500.0,0.0001726,2]
[351050653,1738307454933,-1157.37,0.00017397,2]
[351050654,1738307454942,-500.0,0.00017397,2]
[351050655,1738307454952,-1157.37,0.00017534,2]
[351050656,1738307454961,-500.0,0.00017534,2]
[351050657,1738307454970,-1157.37,0.00017671,2]
[351050658,1738307454980,-32.77888532,0.00017671,2]
[351050659,1738307454991,-467.22111468,0.00017671,2]
[351050660,1738307455003,-1157.37,0.00017808,2]
[351050661,1738307455012,-500.0,0.00017808,2]
[351050662,1738307455022,-2804.71923527,0.00017945,2]
[351050663,1738307455031,-1956.58,0.00017945,2]
[351050664,1738307455040,-500.0,0.00017945,2]
[351050665,1738307455051,-756.03,0.00017945,2]
[351050666,1738307455061,-500.0,0.00017945,2]
[351050667,1738307455070,-180.9,0.00017945,2]
[351050668,1738307455080,-500.0,0.00017945,2]
[351050669,1738307455090,-500.0,0.00017945,2]
[351050670,1738307455100,-500.0,0.00017945,2]
[351050671,1738307455113,-500.0,0.00017945,2]
[351050672,1738307455123,-1411.47,0.00017945,2]
[351050673,1738307455132,-3586.79,0.00017945,2]
[351050674,1738307455142,-1132.03,0.00017945,2]
[351050675,1738307455152,-500.0,0.00017945,2]
[351050676,1738307455163,-500.0,0.00017945,2]
[351050677,1738307455172,-500.0,0.00017945,2]
[351050678,1738307455181,-1481.55,0.00017945,2]
[351050679,1738307455191,-500.0,0.00017945,2]
[351050680,1738307455200,-500.0,0.00017945,2]
[351050681,1738307455210,-500.0,0.00017945,2]
[351050682,1738307455221,-1157.37,0.00017945,2]
[351050683,1738307455231,-500.0,0.00017945,2]
[351050684,1738307455240,-9518.29,0.00018,2]
[351050685,1738307455251,-7656.61,0.00018,2]
[351050686,1738307455260,-312.71507777,0.00018001,2]
[351050687,1738307455270,-484.6907413,0.00018036,2]
[351050688,1738307455279,-422.787,0.0001807,2]
[351050689,1738307455288,-1000.0,0.00018074,2]
[351050690,1738307455298,-339.111246,0.00018074,2]
[351050691,1738307455310,-339.111246,0.00018074,2]
[351050692,1738307455320,-192.595445,0.00018074,2]
[351050693,1738307455330,-192.595445,0.00018074,2]
[351050694,1738307455339,-157.0,0.00018078,2]
[351050695,1738307455348,-500.0,0.00018082,2]
[351050696,1738307455358,-1222.44,0.00018082,2]
[351050697,1738307455368,-2188.85,0.00018082,2]
[351050698,1738307455378,-500.0,0.00018082,2]
[351050699,1738307455390,-16689.68,0.00018082,2]
[351050700,1738307455401,-500.0,0.00018082,2]
[351050701,1738307455411,-619.2,0.00018082,2]
[351050702,1738307455422,-740.13,0.00018082,2]
[351050703,1738307455431,-500.0,0.00018082,2]
[351050704,1738307455441,-500.0,0.00018082,2]
[351050705,1738307455451,-515.62,0.00018082,2]
[351050706,1738307455460,-1296.18,0.00018082,2]
[351050707,1738307455471,-500.0,0.00018082,2]
[351050708,1738307455480,-566.7,0.00018082,2]
[351050709,1738307455491,-517.92,0.00018082,2]
[351050710,1738307455501,-290.92222442,0.00018082,2]
[351050711,1738307455513,-329.85147956,0.00018082,2]
[351050712,1738307455523,-500.0,0.00018082,2]
[351050713,1738307455532,-608.54,0.00018082,2]
[351050714,1738307455543,-14247.73441814,0.00018082,2]
[351050715,1738307455562,-9061.03946201,0.00016766,2]
[351050716,1738307455571,-2953.87558186,0.00018082,2]
[351050717,1738307455580,-1956.58,0.00018082,2]
[351050718,1738307455589,-500.0,0.00018082,2]
[351050719,1738307455599,-756.03,0.00018082,2]
[351050720,1738307455609,-500.0,0.00018082,2]
[351050721,1738307455619,-500.0,0.00018082,2]
[351050722,1738307455628,-500.0,0.00018082,2]
[351050723,1738307455637,-500.0,0.00018082,2]
[351050724,1738307455646,-500.0,0.00018082,2]
[351050725,1738307455655,-1411.47,0.00018082,2]
[351050726,1738307455665,-3586.79,0.00018082,2]
[351050727,1738307455676,-1132.03,0.00018082,2]
[351050728,1738307455686,-500.0,0.00018082,2]
[351050729,1738307455695,-500.0,0.00018082,2]
[351050730,1738307455705,-500.0,0.00018082,2]
[351050731,1738307455715,-1481.55,0.00018082,2]
[351050732,1738307455724,-500.0,0.00018082,2]
[351050733,1738307455734,-500.0,0.00018082,2]
[351050734,1738307455744,-500.0,0.00018082,2]
[351050735,1738307455753,-1157.37,0.00018082,2]
[351050736,1738307455762,-304.24,0.00018082,2]
[351050737,1738307455773,-1000.0,0.000182,2]
[351050738,1738307455782,-280.60574313,0.00018218,2]
[351050739,1738307455792,-500.0,0.00018219,2]
[351050740,1738307455801,-151.0,0.00018219,2]
[351050741,1738307455810,-1222.44,0.00018219,2]
[351050742,1738307455821,-646.901412,0.00018219,2]
[351050743,1738307455831,-646.901412,0.00018219,2]
[351050744,1738307455840,-2188.85,0.00018219,2]
[351050745,1738307455849,-500.0,0.00018219,2]
[351050746,1738307455858,-16689.68,0.00018219,2]
[351050747,1738307455868,-195.333392,0.00018219,2]
[351050748,1738307455878,-500.0,0.00018219,2]
[351050749,1738307455889,-195.333392,0.00018219,2]
[351050750,1738307455899,-740.13,0.00018219,2]
[351050751,1738307455909,-500.0,0.00018219,2]
[351050752,1738307455918,-500.0,0.00018219,2]
[351050753,1738307455928,-515.62,0.00018219,2]
[351050754,1738307455937,-1296.18,0.00018219,2]
[351050755,1738307455947,-500.0,0.00018219,2]
[351050756,1738307455955,-566.7,0.00018219,2]
[351050757,1738307455965,-517.92,0.00018219,2]
[351050758,1738307455974,-500.0,0.00018219,2]
[351050759,1738307455984,-608.54,0.00018219,2]
[351050760,1738307455995,-17201.61,0.00018219,2]
[351050761,1738307456005,-1956.58,0.00018219,2]
[351050762,1738307456015,-500.0,0.00018219,2]
[351050763,1738307456023,-756.03,0.00018219,2]
[351050764,1738307456034,-500.0,0.00018219,2]
[351050765,1738307456045,-500.0,0.00018219,2]
[351050766,1738307456053,-500.0,0.00018219,2]
[351050767,1738307456062,-500.0,0.00018219,2]
[351050768,1738307456072,-1411.47,0.00018219,2]
[351050769,1738307456081,-3586.79,0.00018219,2]
[351050770,1738307456091,-1132.03,0.00018219,2]
[351050771,1738307456100,-500.0,0.00018219,2]
[351050772,1738307456109,-500.0,0.00018219,2]
[351050773,1738307456118,-500.0,0.00018219,2]
[351050774,1738307456127,-1481.55,0.00018219,2]
[351050775,1738307456137,-500.0,0.00018219,2]
[351050776,1738307456147,-500.0,0.00018219,2]
[351050777,1738307456156,-547.02,0.00018219,2]
[351050778,1738307456165,-1157.37,0.00018219,2]
[351050779,1738307456174,-154.4000799,0.00018219,2]
[351050780,1738307456183,-154.4000799,0.00018219,2]
[351050781,1738307456193,-206.4863353,0.00018219,2]
[351050782,1738307456202,-154.4000799,0.00018219,2]
[351050783,1738307456211,-153.0,0.00018219,2]
[351050784,1738307456220,-154.4000799,0.00018219,2]
[351050785,1738307456229,-154.1109273,0.00018219,2]
[351050786,1738307456238,-215.5610874,0.00018219,2]
[351050787,1738307456248,-153.0,0.00018219,2]
[351050788,1738307456258,-215.5610874,0.00018219,2]
[351050789,1738307456267,-153.0,0.00018219,2]
[351050790,1738307456276,-215.0673984,0.00018219,2]
[351050791,1738307456285,-153.0,0.00018219,2]
[351050792,1738307456294,-153.0,0.00018219,2]
[351050793,1738307456303,-154.4000799,0.00018247,2]
[351050794,1738307456312,-154.4000799,0.00018247,2]
[351050795,1738307456322,-154.4000799,0.00018247,2]
[351050796,1738307456331,-154.4000799,0.00018247,2]
[351050797,1738307456340,-7431.24259156,0.00018298,2]
[351050798,1738307456350,-151.0,0.00018356,2]
[351050799,1738307456359,-500.0,0.00018356,2]
[351050800,1738307456369,-1222.44,0.00018356,2]
[351050801,1738307456379,-2188.85,0.00018356,2]
[351050802,1738307456390,-500.0,0.00018356,2]
[351050803,1738307456403,-16689.68,0.00018356,2]
[351050804,1738307456413,-500.0,0.00018356,2]
[351050805,1738307456422,-740.13,0.00018356,2]
[351050806,1738307456434,-339.111246,0.00018356,2]
[351050807,1738307456443,-339.11125317,0.00018356,2]
[351050808,1738307456453,-500.0,0.00018356,2]
[351050809,1738307456464,-515.62,0.00018356,2]
[351050810,1738307456474,-1296.18,0.00018356,2]
[351050811,1738307456485,-500.0,0.00018356,2]
[351050812,1738307456496,-566.7,0.00018356,2]
[351050813,1738307456505,-192.595445,0.00018356,2]
[351050814,1738307456514,-517.92,0.00018356,2]
[351050815,1738307456524,-192.5954365,0.00018356,2]
[351050816,1738307456534,-500.0,0.00018356,2]
[351050817,1738307456543,-608.54,0.00018356,2]
[351050818,1738307456553,-17201.61,0.00018356,2]
[351050819,1738307456563,-1956.58,0.00018356,2]
[351050820,1738307456572,-500.0,0.00018356,2]
[351050821,1738307456581,-756.03,0.00018356,2]
[351050822,1738307456590,-500.0,0.00018356,2]
[351050823,1738307456600,-500.0,0.00018356,2]
[351050824,1738307456609,-500.0,0.00018356,2]
[351050825,1738307456622,-500.0,0.00018356,2]
[351050826,1738307456632,-1411.47,0.00018356,2]
[351050827,1738307456642,-3586.79,0.00018356,2]
[351050828,1738307456651,-1132.03,0.00018356,2]
[351050829,1738307456661,-500.0,0.00018356,2]
[351050830,1738307456670,-500.0,0.00018356,2]
[351050831,1738307456680,-500.0,0.00018356,2]
[351050832,1738307456771,-1481.55,0.00018356,2]
[351050833,1738307456783,-500.0,0.00018356,2]
[351050834,1738307456793,-500.0,0.00018356,2]
[351050835,1738307456803,-1157.37,0.00018356,2]
[351050836,1738307456813,-150.0,0.00018396,2]
[351050837,1738307456822,-150.141,0.00018396,2]
[351050838,1738307456831,-150.0,0.00018396,2]
[351050839,1738307456840,-537.0,0.00018396,2]
[351050840,1738307456850,-2042.0,0.00018396,2]
[351050841,1738307456864,-2303.0,0.00018396,2]
[351050842,1738307456874,-552.64,0.00018493,2]
[351050843,1738307456883,-203.834139,0.00018493,2]
[351050844,1738307456892,-1222.44,0.00018493,2]
[351050845,1738307456903,-646.901412,0.00018493,2]
[351050846,1738307456912,-646.90141118,0.00018493,2]
[351050847,1738307456922,-2188.85,0.00018493,2]
[351050848,1738307456931,-606.48668402,0.00018493,2]
[351050849,1738307456941,-16689.68,0.00018493,2]
[351050850,1738307456951,-195.333392,0.00018493,2]
[351050851,1738307456960,-500.0,0.00018493,2]
[351050852,1738307456970,-195.333385,0.00018493,2]
[351050853,1738307456992,-740.13,0.00018493,2]
[351050854,1738307457003,-500.0,0.00018493,2]
[351050855,1738307457012,-515.62,0.00018493,2]
[351050856,1738307457022,-1296.18,0.00018493,2]
[351050857,1738307457033,-500.0,0.00018493,2]
[351050858,1738307457045,-566.7,0.00018493,2]
[351050859,1738307457055,-517.92,0.00018493,2]
[351050860,1738307457065,-500.0,0.00018493,2]
[351050861,1738307457074,-608.54,0.00018493,2]
[351050862,1738307457083,-17201.61,0.00018493,2]
[351050863,1738307457093,-1956.58,0.00018493,2]
[351050864,1738307457102,-500.0,0.00018493,2]
[351050865,1738307457112,-756.03,0.00018493,2]
[351050866,1738307457121,-200.19717706,0.00018493,2]
[351050867,1738307457131,-320.49882999,0.00018493,2]
[351050868,1738307457145,-179.50117001,0.00018493,2]
[351050869,1738307457154,-214.76701926,0.00018493,2]
[351050870,1738307457164,-150.0,0.00018493,2]
[351050871,1738307457174,-500.0,0.00018493,2]
[351050872,1738307457183,-164.55326859,0.00018493,2]
[351050873,1738307457193,-471.6950738,0.00018493,2]
[351050874,1738307457205,-28.3049262,0.00018493,2]
[351050875,1738307457214,-150.0,0.00018493,2]
[351050876,1738307457223,-200.74295195,0.00018493,2]
[351050877,1738307457233,-500.0,0.00018493,2]
[351050878,1738307457243,-1411.47,0.00018493,2]
[351050879,1738307457253,-3586.79,0.00018493,2]
[351050880,1738307457263,-1132.03,0.00018493,2]
[351050881,1738307457273,-500.0,0.00018493,2]
[351050882,1738307457284,-500.0,0.00018493,2]
[351050883,1738307457294,-500.0,0.00018493,2]
[351050884,1738307457304,-1481.55,0.00018493,2]
[351050885,1738307457314,-500.0,0.00018493,2]
[351050886,1738307457323,-500.0,0.00018493,2]
[351050887,1738307457333,-1157.37,0.00018493,2]
[351050888,1738307457343,-292.0,0.0001854,2]
[351050889,1738307457353,-500.0,0.00018548,2]
[351050890,1738307457362,-155.54,0.000186,2]
[351050891,1738307457371,-155.54,0.000186,2]
[351050892,1738307457382,-1222.44,0.0001863,2]
[351050893,1738307457397,-2188.85,0.0001863,2]
[351050894,1738307457407,-16689.68,0.0001863,2]
[351050895,1738307457416,-500.0,0.0001863,2]
[351050896,1738307457426,-740.13,0.0001863,2]
[351050897,1738307457437,-500.0,0.0001863,2]
[351050898,1738307457447,-515.62,0.0001863,2]
[351050899,1738307457456,-1296.18,0.0001863,2]
[351050900,1738307457467,-500.0,0.0001863,2]
[351050901,1738307457476,-566.7,0.0001863,2]
[351050902,1738307457486,-517.92,0.0001863,2]
[351050903,1738307457496,-500.0,0.0001863,2]
[351050904,1738307457506,-608.54,0.0001863,2]
[351050905,1738307457515,-17201.61,0.0001863,2]
[351050906,1738307457525,-987.98021054,0.0001863,2]
[351050907,1738307457537,-968.59978946,0.0001863,2]
[351050908,1738307457546,-500.0,0.0001863,2]
[351050909,1738307457556,-756.03,0.0001863,2]
[351050910,1738307457566,-500.0,0.0001863,2]
[351050911,1738307457575,-500.0,0.0001863,2]
[351050912,1738307457584,-500.0,0.0001863,2]
[351050913,1738307457594,-1411.47,0.0001863,2]
[351050914,1738307457604,-1924.70707387,0.0001863,2]
[351050915,1738307457616,-1344.35388602,0.0001863,2]
[351050916,1738307457628,-317.72904011,0.0001863,2]
[351050917,1738307457639,-340.1430092,0.0001863,2]
[351050918,1738307457717,-500.0,0.00016438,2]
[351050919,1738307457726,-12.85629558,0.00016438,2]
[351050920,1738307457907,-487.14370442,0.00016438,2]
[351050921,1738307457917,-500.0,0.00016438,2]
[351050922,1738307457927,-500.0,0.00016438,2]
[351050923,1738307457937,-500.0,0.00016438,2]
[351050924,1738307457947,-500.0,0.00016575,2]
[351050925,1738307457957,-500.0,0.00016575,2]
[351050926,1738307457966,-500.0,0.00016575,2]
[351050927,1738307457976,-500.0,0.00016575,2]
[351050928,1738307457985,-335.30918208,0.00016575,2]
[351050929,1738307458003,-164.69081792,0.00016575,2]
[351050930,1738307458013,-509.87,0.00016712,2]
[351050931,1738307458023,-500.0,0.00016712,2]
[351050932,1738307458032,-500.0,0.00016712,2]
[351050933,1738307458040,-500.0,0.00016712,2]
[351050934,1738307458049,-500.0,0.00016712,2]
[351050935,1738307458058,-289.86918688,0.00016849,2]
[351050936,1738307458252,-330.11,0.00016438,2]
[351050937,1738307458262,-25.29,0.00016438,2]
[351050938,1738307587283,161.310115,0.00013973,2]
[351050939,1738307865511,233.122321,0.00013699,2]
[351050940,1738307996710,845.17,0.00010959,2]
[351050941,1738308017537,262.52,0.00010959,2]